[Event "Polish Youth G16 Championship 2023"]
[Site "Jastrzebia Gora"]
[Date "2023.03.18"]
[Round "8.12"]
[White "Romejko, Jagoda"]
[Black "Kulczycka, Zofia"]
[Result "1/2-1/2"]
[ECO "B59"]
[WhiteElo "1483"]
[BlackElo "1547"]
[Annotator "NA RC COMBH"]
[PlyCount "121"]
[EventDate "2023.03.11"]
[EventType "swiss"]
[EventCountry "POL"]
[SourceTitle "playchess.com"]
[Source "ChessBase"]
[SourceQuality "1"]
[TimeControl "40/5400+30:1800+30"]

1. e4 {[%emt 0:00:03]} c5 {[%emt 0:00:06]} 2. Nf3 {[%emt 0:00:03]} Nc6 {[%emt 0:00:06]} 3. d4 {[%emt 0:00:04]} cxd4 {[%emt 0:00:07]} 4. Nxd4 {[%emt 0:00:05]} Nf6 {[%emt 0:00:12]} 5. Nc3 {[%emt 0:00:04]} d6 {[%emt 0:00:08]} 6. Be2 {[%emt 0:00:07]} e5 {[%emt 0:00:09]} 7. Nb3 {[%emt 0:00:04]} Be7 {[%emt 0:00:54]} 8. O-O {[%emt 0:00:10]} O-O {[%emt 0:00:24]} 9. Be3 {[%emt 0:00:11]} Be6 {[%emt 0:00:45]} 10. Bf3 {[%emt 0:00:30]} a5 {[%emt 0:03:49]} 11. Nd5 {[%emt 0:02:41]} a4 {[%emt 0:09:23]} 12. Nd2 {[%emt 0:00:53]} Bxd5 {[%emt 0:05:01]} 13. exd5 {[%emt 0:00:08]} Nb4 {[%emt 0:00:13]} 14. c4 {[%emt 0:02:31]} Nd7 {[%emt 0:04:37]} 15. b3 {[%emt 0:19:27]} f5 {[%emt 0:11:56]} 16. Nb1 {[%emt 0:15:11]} e4 {[%emt 0:07:13]} 17. Be2 {[%emt 0:20:17]} Bf6 {[%emt 0:00:54]} 18. Bd2 {[%emt 0:05:50]} Bxa1 {[%emt 0:01:28]} 19. Bxb4 {[%emt 0:00:26]} Be5 {[%emt 0:01:48]} 20. Nc3 {[%emt 0:07:29]} axb3 {[%emt 0:06:30]} 21. axb3 {[%emt 0:00:24]} Nc5 {[%emt 0:07:56]} 22. Nb5 {[%emt 0:04:16]} Na6 {[%emt 0:05:21]} 23. Bc3 {[%emt 0:05:46]} Bxc3 {[%emt 0:03:07]} 24. Nxc3 {[%emt 0:00:10]} Qb6 {[%emt 0:02:04]} 25. Qc2 {[%emt 0:08:03]} Qb4 {[%emt 0:10:27]} 26. Nb5 {[%emt 0:01:42]} Rfd8 {[%emt 0:01:12]} 27. g4 {[%emt 0:01:30]} Nc5 {[%emt 0:04:40]} 28. Rb1 {[%emt 0:02:24]} f4 {[%emt 0:01:09]} 29. g5 {[%emt 0:01:34]} f3 {[%emt 0:01:15]} 30. Bf1 {[%emt 0:00:12]} Ra5 {[%emt 0:01:59]} 31. Nd4 {[%emt 0:01:44]} Rda8 {[%emt 0:00:47]} 32. Qc1 {[%emt 0:01:20]} Ra2 {[%emt 0:02:33]} 33. Qf4 {[%emt 0:01:06]} Qd2 {[%emt 0:00:39]} 34. Qxd2 {[%emt 0:00:31]} Rxd2 {[%emt 0:00:05]} 35. Nf5 {[%emt 0:00:23]} Raa2 {[%emt 0:01:25]} 36. Nxd6 {[%emt 0:00:24]} Rxf2 {[%emt 0:00:14]} 37. b4 {[%emt 0:00:37]} Rfb2 {[%emt 0:07:14]} 38. Rxb2 {[%emt 0:00:32]} Rxb2 {[%emt 0:00:05]} 39. bxc5 {[%emt 0:00:11]} e3 {[%emt 0:01:25]} 40. c6 {[%emt 0:00:00]} bxc6 {[%emt 0:00:00]} 41. dxc6 {[%emt 0:01:11]} Rg2+ {[%emt 0:06:50]} 42. Bxg2 {[%emt 0:01:39]} e2 {[%emt 0:00:24]} 43. Kf2 {[%emt 0:00:46]} fxg2 {[%emt 0:00:22]} 44. Kxg2 {[%emt 0:03:30]} e1=Q {[%emt 0:00:07]} 45. c7 {[%emt 0:00:07]} Qe2+ {[%emt 0:00:58]} 46. Kg1 {[%emt 0:01:04]} Qg4+ {[%emt 0:01:22]} 47. Kf1 {[%emt 0:01:22]} Qf4+ {[%emt 0:00:50]} 48. Ke1 {[%emt 0:00:55]} Qe3+ {[%emt 0:01:26]} 49. Kf1 {[%emt 0:01:25]} Qc1+ {[%emt 0:01:21]} 50. Kf2 {[%emt 0:01:07]} Qb2+ {[%emt 0:00:30]} 51. Kf1 {[%emt 0:00:46]} Qa1+ {[%emt 0:01:57]} 52. Ke2 {[%emt 0:00:39]} Qe5+ {[%emt 0:00:25]} 53. Kf1 {[%emt 0:00:36]} Qf4+ {[%emt 0:07:02]} 54. Ke1 {[%emt 0:00:25]} Qe3+ {[%emt 0:00:37]} 55. Kf1 {[%emt 0:00:16]} Qf3+ {[%emt 0:00:50]} 56. Kg1 {[%emt 0:01:49]} Qd1+ {[%emt 0:01:21]} 57. Kf2 {[%emt 0:02:11]} Qd2+ {[%emt 0:01:01]} 58. Kf1 {[%emt 0:00:45]} Qc1+ {[%emt 0:02:30]} 59. Kf2 {[%emt 0:00:27]} Qb2+ {[%emt 0:01:45]} 60. Kf1 {[%emt 0:00:24]} Qb1+ {[%emt 0:00:44]} 61. Ke2 {[%emt 0:01:16]} 1/2-1/2

[Event "Polish Youth G16 Championship 2023"]
[Site "Jastrzebia Gora"]
[Date "2023.03.18"]
[Round "8.14"]
[White "Pietryk, Joanna"]
[Black "Makarec, Anna"]
[Result "0-1"]
[ECO "C95"]
[WhiteElo "1488"]
[BlackElo "1271"]
[Annotator "NA RC COMBH"]
[PlyCount "136"]
[EventDate "2023.03.11"]
[EventType "swiss"]
[EventCountry "POL"]
[SourceTitle "playchess.com"]
[Source "ChessBase"]
[SourceQuality "1"]
[TimeControl "40/5400+30:1800+30"]

1. e4 {[%emt 0:00:02]} e5 {[%emt 0:00:06]} 2. Nf3 {[%emt 0:00:05]} Nc6 {[%emt 0:00:07]} 3. Bb5 {[%emt 0:00:04]} a6 {[%emt 0:00:14]} 4. Ba4 {[%emt 0:00:04]} Nf6 {[%emt 0:00:21]} 5. O-O {[%emt 0:00:09]} Be7 {[%emt 0:00:37]} 6. Re1 {[%emt 0:00:07]} b5 {[%emt 0:00:22]} 7. Bb3 {[%emt 0:00:06]} d6 {[%emt 0:00:24]} 8. c3 {[%emt 0:00:12]} O-O {[%emt 0:00:57]} 9. h3 {[%emt 0:00:09]} Nb8 {[%emt 0:01:23]} 10. d4 {[%emt 0:01:47]} Nbd7 {[%emt 0:00:42]} 11. Bg5 {[%emt 0:04:05]} h6 {[%emt 0:02:05]} 12. Bh4 {[%emt 0:02:27]} Bb7 {[%emt 0:00:37]} 13. Nbd2 {[%emt 0:01:51]} Re8 {[%emt 0:04:37]} 14. Nh2 {[%emt 0:04:52]} exd4 {[%emt 0:10:31]} 15. cxd4 {[%emt 0:00:10]} c5 {[%emt 0:00:47]} 16. d5 {[%emt 0:04:58]} c4 {[%emt 0:05:27]} 17. Bc2 {[%emt 0:02:31]} Nxd5 {[%emt 0:02:51]} 18. exd5 {[%emt 0:02:12]} Bxh4 {[%emt 0:00:13]} 19. Rxe8+ {[%emt 0:00:32]} Qxe8 {[%emt 0:00:22]} 20. Qh5 {[%emt 0:01:11]} Bg5 {[%emt 0:03:15]} 21. Ne4 {[%emt 0:02:01]} g6 {[%emt 0:09:32]} 22. Qd1 {[%emt 0:01:41]} Be7 {[%emt 0:10:24]} 23. Qd2 {[%emt 0:03:31]} Qf8 {[%emt 0:02:56]} 24. Re1 {[%emt 0:02:23]} Nf6 {[%emt 0:03:57]} 25. Nxf6+ {[%emt 0:02:21]} Bxf6 {[%emt 0:00:09]} 26. Ng4 {[%emt 0:00:09]} Bg7 {[%emt 0:00:55]} 27. b3 {[%emt 0:07:38]} Rc8 {[%emt 0:05:08]} 28. b4 {[%emt 0:02:11]} h5 {[%emt 0:01:50]} 29. Nh2 {[%emt 0:01:13]} Bh6 {[%emt 0:00:52]} 30. Qd4 {[%emt 0:00:33]} Qg7 {[%emt 0:01:10]} 31. Qb6 {[%emt 0:02:09]} Qc3 {[%emt 0:07:00]} 32. Re2 {[%emt 0:01:00]} Bxd5 {[%emt 0:02:23]} 33. Qxa6 {[%emt 0:01:49]} Ra8 {[%emt 0:03:33]} 34. Qxd6 {[%emt 0:02:30]} Rxa2 {[%emt 0:09:27]} 35. Re8+ {[%emt 0:08:03]} Kh7 {[%emt 0:01:57]} 36. Bxg6+ {[%emt 0:02:40]} fxg6 {[%emt 0:00:15]} 37. Re7+ {[%emt 0:01:39]} Bg7 {[%emt 0:00:15]} 38. Qxd5 {[%emt 0:00:27]} Qc1+ {[%emt 0:01:10]} 39. Nf1 {[%emt 0:00:13]} Ra1 {[%emt 0:00:48]} 40. Qe5 {[%emt 0:00:00]} Qxf1+ {[%emt 0:00:00]} 41. Kh2 {[%emt 0:07:08]} Qg1+ {[%emt 0:06:43]} 42. Kg3 {[%emt 0:00:07]} Ra3+ {[%emt 0:01:46]} 43. f3 {[%emt 0:02:12]} h4+ {[%emt 0:01:03]} 44. Kxh4 {[%emt 0:01:02]} Qf2+ {[%emt 0:00:39]} 45. g3 {[%emt 0:01:13]} g5+ {[%emt 0:00:46]} 46. Qxg5 {[%emt 0:02:50]} Qd4+ {[%emt 0:01:38]} 47. f4 {[%emt 0:00:21]} Ra6 {[%emt 0:01:45]} 48. Qf5+ {[%emt 0:01:29]} Rg6 {[%emt 0:00:58]} 49. Re6 {[%emt 0:01:48]} Qd3 {[%emt 0:04:46]} 50. Qh5+ {[%emt 0:04:05]} Bh6 {[%emt 0:07:51]} 51. Rxg6 {[%emt 0:00:55]} Qxg6 {[%emt 0:01:35]} 52. Qxb5 {[%emt 0:01:19]} Qf6+ {[%emt 0:00:22]} 53. Kh5 {[%emt 0:01:29]} Qf7+ {[%emt 0:01:02]} 54. Kh4 {[%emt 0:03:03]} Bg7 {[%emt 0:01:19]} 55. Qc5 {[%emt 0:00:49]} c3 {[%emt 0:00:55]} 56. b5 {[%emt 0:00:30]} Qg6 {[%emt 0:01:31]} 57. Qc7 Kh6 58. g4 {[%emt 0:03:00]} Bf6+ {[%emt 0:03:40]} 59. Kg3 {[%emt 0:00:26]} Qd3+ {[%emt 0:00:26]} 60. Kg2 {[%emt 0:00:38]} Qe2+ {[%emt 0:02:26]} 61. Kh1 {[%emt 0:01:09]} c2 {[%emt 0:00:57]} 62. g5+ {[%emt 0:02:01]} Kg6 {[%emt 0:02:32]} 63. Qc6 {[%emt 0:02:40]} Kh5 {[%emt 0:03:20]} 64. gxf6 {[%emt 0:01:20]} Qf1+ {[%emt 0:00:46]} 65. Kh2 {[%emt 0:00:11]} Qxf4+ {[%emt 0:00:07]} 66. Kg2 {[%emt 0:00:12]} Qg5+ {[%emt 0:00:54]} 67. Kf2 {[%emt 0:01:22]} c1=Q {[%emt 0:00:12]} 68. Qe8+ {[%emt 0:01:08]} Kh4 {[%emt 0:00:48]} 0-1

[Event "Polish Youth G16 Championship 2023"]
[Site "Jastrzebia Gora"]
[Date "2023.03.18"]
[Round "8.15"]
[White "Bandyk, Joanna"]
[Black "Dura, Anna"]
[Result "1/2-1/2"]
[ECO "A08"]
[WhiteElo "1459"]
[BlackElo "1186"]
[Annotator "NA RC COMBH"]
[PlyCount "104"]
[EventDate "2023.03.11"]
[EventType "swiss"]
[EventCountry "POL"]
[SourceTitle "playchess.com"]
[Source "ChessBase"]
[SourceQuality "1"]
[TimeControl "40/5400+30:1800+30"]

1. e4 {[%emt 0:00:02]} e6 {[%emt 0:00:02]} 2. d3 {[%emt 0:00:07]} d5 {[%emt 0:00:04]} 3. Nd2 {[%emt 0:00:15]} Nf6 {[%emt 0:00:31]} 4. Ngf3 {[%emt 0:00:45]} Be7 {[%emt 0:01:15]} 5. g3 {[%emt 0:01:41]} O-O {[%emt 0:01:35]} 6. Bg2 {[%emt 0:00:50]} c5 {[%emt 0:02:38]} 7. O-O {[%emt 0:01:41]} Nc6 {[%emt 0:01:00]} 8. Re1 {[%emt 0:02:34]} b6 {[%emt 0:03:02]} 9. e5 {[%emt 0:01:00]} Nd7 {[%emt 0:00:18]} 10. Nf1 {[%emt 0:00:35]} Bb7 {[%emt 0:02:18]} 11. h4 {[%emt 0:01:40]} h6 {[%emt 0:01:42]} 12. N1h2 {[%emt 0:05:36]} Re8 {[%emt 0:04:39]} 13. Bf4 {[%emt 0:12:28]} Bf8 {[%emt 0:05:46]} 14. h5 {[%emt 0:18:51]} Ne7 {[%emt 0:09:36]} 15. g4 {[%emt 0:04:39]} g6 {[%emt 0:04:25]} 16. hxg6 {[%emt 0:04:29]} Nxg6 {[%emt 0:00:25]} 17. Qd2 {[%emt 0:01:04]} Kh7 {[%emt 0:04:03]} 18. Nf1 {[%emt 0:05:34]} Bg7 {[%emt 0:06:25]} 19. Ng3 {[%emt 0:00:54]} Rh8 {[%emt 0:04:57]} 20. Nh5 {[%emt 0:03:32]} Qf8 {[%emt 0:04:20]} 21. Kh2 {[%emt 0:02:36]} Re8 {[%emt 0:03:24]} 22. Rh1 {[%emt 0:04:21]} Ndxe5 {[%emt 0:02:51]} 23. Nxe5 {[%emt 0:00:44]} Nxe5 {[%emt 0:00:47]} 24. Nxg7 {[%emt 0:00:52]} Qxg7 {[%emt 0:00:33]} 25. Kg1 {[%emt 0:01:35]} Kg6 {[%emt 0:02:20]} 26. Qe2 {[%emt 0:04:23]} f6 {[%emt 0:01:49]} 27. Bxe5 {[%emt 0:02:41]} fxe5 {[%emt 0:00:41]} 28. Re1 {[%emt 0:00:55]} Kf7 {[%emt 0:01:53]} 29. Rh3 {[%emt 0:03:09]} Rhg8 {[%emt 0:02:29]} 30. Qxe5 {[%emt 0:03:17]} Qxe5 {[%emt 0:01:07]} 31. Rxe5 {[%emt 0:00:05]} Rxg4 {[%emt 0:00:36]} 32. Kf1 {[%emt 0:01:13]} Reg8 {[%emt 0:01:11]} 33. Bf3 {[%emt 0:01:19]} R4g5 {[%emt 0:01:53]} 34. Rxg5 {[%emt 0:01:55]} hxg5 {[%emt 0:00:45]} 35. Bg4 {[%emt 0:01:21]} e5 {[%emt 0:06:41]} 36. Rf3+ {[%emt 0:00:53]} Ke7 {[%emt 0:02:27]} 37. Rh3 {[%emt 0:01:57]} Rg7 {[%emt 0:04:23]} 38. f3 {[%emt 0:01:34]} Bc6 {[%emt 0:03:12]} 39. Kf2 {[%emt 0:02:46]} Bd7 {[%emt 0:01:02]} 40. Kg3 {[%emt 0:00:00]} c4 {[%emt 0:00:00]} 41. dxc4 {[%emt 0:04:01]} dxc4 {[%emt 0:04:06]} 42. Rh2 {[%emt 0:01:11]} Be6 {[%emt 0:06:27]} 43. Re2 {[%emt 0:01:49]} Kf6 {[%emt 0:01:23]} 44. Rh2 {[%emt 0:04:29]} Bf5 {[%emt 0:04:12]} 45. Rh6+ {[%emt 0:06:11]} Rg6 {[%emt 0:00:36]} 46. Rh7 {[%emt 0:00:37]} Bxc2 {[%emt 0:01:18]} 47. Rxa7 {[%emt 0:00:14]} e4 {[%emt 0:01:10]} 48. Rc7 {[%emt 0:01:51]} e3 {[%emt 0:04:25]} 49. Rxc4 {[%emt 0:01:34]} Bb1 {[%emt 0:05:04]} 50. f4 {[%emt 0:04:14]} Bxa2 {[%emt 0:02:26]} 51. Rc6+ {[%emt 0:00:13]} Kg7 {[%emt 0:00:27]} 52. Rxg6+ {[%emt 0:00:20]} Kxg6 {[%emt 0:00:09]} 1/2-1/2

[Event "Polish Youth G16 Championship 2023"]
[Site "Jastrzebia Gora"]
[Date "2023.03.18"]
[Round "8.16"]
[White "Niedorys, Karolina"]
[Black "Bauer, Maja"]
[Result "1/2-1/2"]
[ECO "B34"]
[WhiteElo "1458"]
[BlackElo "1383"]
[Annotator "NA RC COMBH"]
[PlyCount "62"]
[EventDate "2023.03.11"]
[EventType "swiss"]
[EventCountry "POL"]
[SourceTitle "playchess.com"]
[Source "ChessBase"]
[SourceQuality "1"]
[TimeControl "40/5400+30:1800+30"]

1. e4 {[%emt 0:00:03]} c5 {[%emt 0:00:08]} 2. Nf3 {[%emt 0:00:11]} g6 {[%emt 0:00:31]} 3. d4 {[%emt 0:00:17]} cxd4 {[%emt 0:00:08]} 4. Nxd4 {[%emt 0:00:04]} Nc6 {[%emt 0:00:26]} 5. Nc3 {[%emt 0:03:38]} Bg7 {[%emt 0:01:36]} 6. Be3 {[%emt 0:01:58]} Nf6 {[%emt 0:04:29]} 7. f3 {[%emt 0:00:57]} O-O {[%emt 0:07:30]} 8. Qd2 {[%emt 0:06:28]} d5 {[%emt 0:01:52]} 9. Nxc6 {[%emt 0:00:41]} bxc6 {[%emt 0:00:16]} 10. exd5 {[%emt 0:01:19]} Nxd5 {[%emt 0:03:45]} 11. Bd4 {[%emt 0:00:53]} Nb4 {[%emt 0:19:44]} 12. Bxg7 {[%emt 0:05:12]} Qxd2+ {[%emt 0:01:19]} 13. Kxd2 {[%emt 0:00:07]} Rd8+ {[%emt 0:01:29]} 14. Bd3 {[%emt 0:02:23]} Kxg7 {[%emt 0:01:10]} 15. Ke2 {[%emt 0:01:27]} Nxd3 {[%emt 0:01:29]} 16. cxd3 {[%emt 0:00:09]} Ba6 {[%emt 0:03:37]} 17. Rhd1 {[%emt 0:00:50]} Rd6 {[%emt 0:05:50]} 18. Rd2 {[%emt 0:01:39]} Rad8 {[%emt 0:06:09]} 19. Rad1 {[%emt 0:00:51]} f5 {[%emt 0:05:59]} 20. f4 {[%emt 0:01:39]} Kf6 {[%emt 0:11:23]} 21. Ke3 {[%emt 0:01:18]} e5 {[%emt 0:03:47]} 22. fxe5+ {[%emt 0:00:59]} Kxe5 {[%emt 0:00:08]} 23. d4+ {[%emt 0:01:24]} Kf6 {[%emt 0:08:59]} 24. Kf2 {[%emt 0:04:31]} c5 {[%emt 0:04:33]} 25. d5 {[%emt 0:00:55]} Bb7 {[%emt 0:00:22]} 26. a3 {[%emt 0:04:23]} c4 {[%emt 0:01:12]} 27. Rd4 {[%emt 0:02:40]} a6 {[%emt 0:03:28]} 28. Rxc4 {[%emt 0:02:37]} Bxd5 {[%emt 0:00:43]} 29. Nxd5+ {[%emt 0:00:37]} Rxd5 {[%emt 0:00:14]} 30. Rxd5 {[%emt 0:00:50]} Rxd5 {[%emt 0:00:05]} 31. Ke2 {[%emt 0:01:23]} Ke5 1/2-1/2

[Event "Polish Youth G16 Championship 2023"]
[Site "Jastrzebia Gora"]
[Date "2023.03.18"]
[Round "8.17"]
[White "Zgoda, Aleksandra"]
[Black "Biniak, Zuzanna"]
[Result "0-1"]
[ECO "B07"]
[WhiteElo "1308"]
[BlackElo "1457"]
[Annotator "NA RC COMBH"]
[PlyCount "73"]
[EventDate "2023.03.11"]
[EventType "swiss"]
[EventCountry "POL"]
[SourceTitle "playchess.com"]
[Source "ChessBase"]
[SourceQuality "1"]
[TimeControl "40/5400+30:1800+30"]

1. d4 {[%emt 0:00:04]} d6 {[%emt 0:00:05]} 2. e4 {[%emt 0:00:28]} Nf6 {[%emt 0:00:20]} 3. Nc3 {[%emt 0:00:17]} g6 {[%emt 0:00:35]} 4. Bg5 {[%emt 0:00:45]} Bg7 {[%emt 0:00:13]} 5. e5 {[%emt 0:04:35]} Nfd7 {[%emt 0:08:02]} 6. f4 {[%emt 0:08:22]} Nb6 {[%emt 0:05:47]} 7. Nf3 {[%emt 0:05:53]} O-O {[%emt 0:02:48]} 8. Qd2 {[%emt 0:04:55]} f6 {[%emt 0:09:09]} 9. Bh4 {[%emt 0:07:23]} dxe5 10. fxe5 {[%emt 0:03:14]} Bg4 {[%emt 0:18:32]} 11. Be2 {[%emt 0:10:25]} c6 {[%emt 0:06:02]} 12. exf6 {[%emt 0:03:46]} exf6 {[%emt 0:01:12]} 13. O-O-O {[%emt 0:01:45]} Be6 {[%emt 0:06:20]} 14. h3 {[%emt 0:07:25]} Nc4 {[%emt 0:00:30]} 15. Bxc4 {[%emt 0:02:01]} Bxc4 {[%emt 0:06:03]} 16. Rhe1 {[%emt 0:07:05]} Qa5 {[%emt 0:07:03]} 17. Kb1 {[%emt 0:05:39]} Na6 {[%emt 0:03:59]} 18. b3 {[%emt 0:01:35]} Bf7 {[%emt 0:03:22]} 19. Ne4 {[%emt 0:05:16]} Qxd2 {[%emt 0:00:46]} 20. Rxd2 {[%emt 0:02:57]} g5 {[%emt 0:01:11]} 21. Bg3 {[%emt 0:00:39]} Rad8 {[%emt 0:05:34]} 22. Nd6 {[%emt 0:01:00]} Rd7 {[%emt 0:00:07]} 23. Rde2 {[%emt 0:01:23]} Rfd8 {[%emt 0:02:00]} 24. Nxf7 {[%emt 0:02:09]} Kxf7 {[%emt 0:00:08]} 25. c3 Nc7 26. c4 {[%emt 0:02:44]} Bf8 {[%emt 0:03:26]} 27. Kc2 {[%emt 0:02:09]} h5 {[%emt 0:01:20]} 28. Rf1 {[%emt 0:01:21]} Kg6 {[%emt 0:00:53]} 29. Ref2 {[%emt 0:04:43]} Bg7 {[%emt 0:02:24]} 30. Nd2 {[%emt 0:01:04]} Ne6 {[%emt 0:00:53]} 31. Ne4 {[%emt 0:00:31]} Nxd4+ {[%emt 0:00:18]} 32. Kc1 {[%emt 0:01:06]} f5 {[%emt 0:00:38]} 33. Nc5 {[%emt 0:00:05]} Re7 {[%emt 0:00:33]} 34. Rd2 {[%emt 0:02:12]} Ne2+ {[%emt 0:01:24]} 35. Rxe2 {[%emt 0:01:09]} Rxe2 {[%emt 0:00:05]} 36. Nxb7 {[%emt 0:00:14]} Rdd2 {[%emt 0:01:08]} 37. Rf2 {[%emt 0:00:43]} 0-1

[Event "Polish Youth G16 Championship 2023"]
[Site "Jastrzebia Gora"]
[Date "2023.03.18"]
[Round "8.18"]
[White "Nowak, Zuzanna"]
[Black "Krzysztynska, Maria"]
[Result "1-0"]
[ECO "C74"]
[WhiteElo "1427"]
[BlackElo "1335"]
[Annotator "NA RC COMBH"]
[PlyCount "69"]
[EventDate "2023.03.11"]
[EventType "swiss"]
[EventCountry "POL"]
[SourceTitle "playchess.com"]
[Source "ChessBase"]
[SourceQuality "1"]
[TimeControl "40/5400+30:1800+30"]

1. e4 e5 2. Nf3 Nc6 3. Bb5 a6 4. Ba4 d6 5. c3 Nf6 6. O-O Bg4 7. h3 Bh5 8. Bxc6+ bxc6 9. d3 h6 10. Nbd2 g5 11. d4 g4 12. hxg4 Bxg4 13. Qa4 Bd7 14. dxe5 c5 15. Qc2 Ng4 16. exd6 Bxd6 17. e5 Be7 18. Re1 Bh4 19. Ne4 Rg8 20. Nf6+ Bxf6 21. exf6+ Kf8 22. Qe4 Be6 23. Qc6 Rg6 24. Qxc5+ Kg8 25. Qe7 Qd5 26. Bf4 Rxf6 27. Rad1 Qh5 28. Rd8+ Rxd8 29. Qxd8+ Kh7 30. Bg3 Rxf3 31. gxf3 Bd5 32. Qh4 Qxh4 33. Bxh4 Bxf3 34. Re7 Kg6 35. Rxc7 1-0

[Event "Polish Youth G16 Championship 2023"]
[Site "Jastrzebia Gora"]
[Date "2023.03.18"]
[Round "8.19"]
[White "Domeradzka, Karolina"]
[Black "Michalska, Anna-Maria"]
[Result "0-1"]
[ECO "B11"]
[WhiteElo "1194"]
[BlackElo "1417"]
[Annotator "NA RC COMBH"]
[PlyCount "166"]
[EventDate "2023.03.11"]
[EventType "swiss"]
[EventCountry "POL"]
[SourceTitle "playchess.com"]
[Source "ChessBase"]
[SourceQuality "1"]
[TimeControl "40/5400+30:1800+30"]

1. e4 c6 {[%emt 0:00:04]} 2. Nc3 d5 {[%emt 0:00:06]} 3. Nf3 {[%emt 0:00:21]} Bg4 {[%emt 0:01:31]} 4. h3 {[%emt 0:00:02]} Bxf3 {[%emt 0:00:23]} 5. Qxf3 {[%emt 0:00:03]} d4 {[%emt 0:01:26]} 6. Ne2 {[%emt 0:01:59]} e5 {[%emt 0:00:53]} 7. Ng3 {[%emt 0:02:09]} Nd7 {[%emt 0:03:25]} 8. Bc4 {[%emt 0:00:20]} Qf6 {[%emt 0:00:49]} 9. Qxf6 {[%emt 0:08:10]} Ngxf6 {[%emt 0:00:22]} 10. c3 {[%emt 0:03:01]} b5 {[%emt 0:03:53]} 11. Be2 Bc5 12. b4 {[%emt 0:07:08]} Bb6 {[%emt 0:05:40]} 13. a4 {[%emt 0:00:31]} bxa4 {[%emt 0:00:47]} 14. Rxa4 {[%emt 0:00:22]} a5 {[%emt 0:01:29]} 15. b5 {[%emt 0:07:14]} Nc5 16. Rc4 cxb5 {[%emt 0:02:29]} 17. Rxc5 {[%emt 0:00:40]} Bxc5 {[%emt 0:00:08]} 18. Bxb5+ Kd8 19. Ke2 {[%emt 0:02:52]} g6 {[%emt 0:01:37]} 20. cxd4 {[%emt 0:01:55]} Bxd4 {[%emt 0:01:04]} 21. d3 Nd7 {[%emt 0:00:38]} 22. Ba3 {[%emt 0:00:49]} Bc5 {[%emt 0:01:02]} 23. Bxc5 {[%emt 0:07:22]} Nxc5 {[%emt 0:00:11]} 24. Bc4 {[%emt 0:00:07]} Ke7 {[%emt 0:00:33]} 25. Rc1 Ne6 {[%emt 0:02:21]} 26. Nf1 {[%emt 0:04:41]} Nd4+ {[%emt 0:00:29]} 27. Ke1 {[%emt 0:05:20]} Rhc8 {[%emt 0:00:16]} 28. Ne3 Rab8 {[%emt 0:01:43]} 29. Nd5+ {[%emt 0:02:18]} Kf8 {[%emt 0:01:00]} 30. Nc3 {[%emt 0:12:04]} Kg7 {[%emt 0:03:13]} 31. Kf1 {[%emt 0:04:14]} Nb3 32. Rc2 a4 {[%emt 0:19:01]} 33. Nxa4 {[%emt 0:07:34]} Na5 {[%emt 0:00:36]} 34. Ke2 {[%emt 0:13:41]} f5 {[%emt 0:01:43]} 35. exf5 {[%emt 0:01:10]} gxf5 {[%emt 0:00:30]} 36. Ke3 {[%emt 0:00:30]} Kf6 {[%emt 0:00:30]} 37. g3 {[%emt 0:00:30]} Rb4 {[%emt 0:00:30]} 38. Nb2 {[%emt 0:00:30]} Rxb2 {[%emt 0:00:30]} 39. Rxb2 {[%emt 0:00:30]} Rxc4 {[%emt 0:00:30]} 40. Rb8 {[%emt 0:00:30]} Rc7 {[%emt 0:00:30]} 41. Ra8 {[%emt 0:30:30]} Nc6 {[%emt 0:30:30]} 42. Ra6 {[%emt 0:00:30]} Ke6 {[%emt 0:00:30]} 43. f4 {[%emt 0:00:30]} Kd5 {[%emt 0:00:30]} 44. fxe5 {[%emt 0:00:30]} Nxe5 {[%emt 0:00:30]} 45. Ra5+ {[%emt 0:00:30]} Ke6 {[%emt 0:00:30]} 46. Ra6+ {[%emt 0:00:30]} Kf7 {[%emt 0:00:30]} 47. Rh6 {[%emt 0:00:30]} Kg7 {[%emt 0:00:30]} 48. Re6 {[%emt 0:00:30]} Nc6 {[%emt 0:00:30]} 49. Kf4 {[%emt 0:00:30]} Ne7 {[%emt 0:00:30]} 50. Ke5 {[%emt 0:00:30]} Rd7 {[%emt 0:00:30]} 51. d4 {[%emt 0:00:30]} Rd5+ {[%emt 0:00:30]} 52. Kf4 {[%emt 0:00:30]} Rxd4+ {[%emt 0:00:30]} 53. Ke3 {[%emt 0:00:30]} Rd7 {[%emt 0:00:30]} 54. Kf4 {[%emt 0:00:30]} Kf7 {[%emt 0:00:30]} 55. Ra6 {[%emt 0:00:30]} Rd3 {[%emt 0:00:30]} 56. Ra7 {[%emt 0:00:30]} Rd1 {[%emt 0:00:30]} 57. Kg5 {[%emt 0:00:30]} Rd6 {[%emt 0:00:30]} 58. Rb7 {[%emt 0:00:30]} Re6 {[%emt 0:00:30]} 59. Ra7 {[%emt 0:00:30]} Rg6+ {[%emt 0:00:30]} 60. Kf4 {[%emt 0:00:30]} h6 {[%emt 0:00:30]} 61. g4 {[%emt 0:00:30]} Rf6 {[%emt 0:00:30]} 62. Rb7 {[%emt 0:00:30]} fxg4+ {[%emt 0:00:30]} 63. Kxg4 {[%emt 0:00:30]} Rd6 {[%emt 0:00:30]} 64. h4 {[%emt 0:00:30]} Kg6 {[%emt 0:00:30]} 65. h5+ {[%emt 0:00:30]} Kf6 {[%emt 0:00:30]} 66. Rb5 {[%emt 0:00:30]} Rd4+ {[%emt 0:00:30]} 67. Kg3 {[%emt 0:00:30]} Rd5 {[%emt 0:00:30]} 68. Rb6+ {[%emt 0:00:30]} Kg5 {[%emt 0:00:30]} 69. Rb4 {[%emt 0:00:30]} Rd3+ {[%emt 0:00:30]} 70. Kh2 {[%emt 0:00:30]} Kxh5 {[%emt 0:00:30]} 71. Rb5+ {[%emt 0:00:30]} Nd5 {[%emt 0:00:30]} 72. Rb8 {[%emt 0:00:30]} Nf4 {[%emt 0:00:30]} 73. Rg8 {[%emt 0:00:30]} Kh4 {[%emt 0:00:30]} 74. Kh1 {[%emt 0:00:30]} Rd2 {[%emt 0:00:30]} 75. Kg1 {[%emt 0:00:30]} Kh3 {[%emt 0:00:30]} 76. Kf1 {[%emt 0:00:30]} Rg2 {[%emt 0:00:30]} 77. Rxg2 {[%emt 0:00:30]} Nxg2 {[%emt 0:00:30]} 78. Kg1 {[%emt 0:00:30]} Kg3 {[%emt 0:00:30]} 79. Kh1 {[%emt 0:00:30]} Ne3 {[%emt 0:00:30]} 80. Kg1 {[%emt 0:00:30]} h5 {[%emt 0:00:30]} 81. Kh1 {[%emt 0:00:30]} h4 {[%emt 0:00:30]} 82. Kg1 {[%emt 0:00:30]} h3 {[%emt 0:00:30]} 83. Kh1 {[%emt 0:00:30]} Ng4 {[%emt 0:00:30]} 0-1

[Event "Polish Youth G16 Championship 2023"]
[Site "Jastrzebia Gora"]
[Date "2023.03.18"]
[Round "8.20"]
[White "Gajec, Roza"]
[Black "Idzior, Izabela"]
[Result "1-0"]
[ECO "C04"]
[WhiteElo "1341"]
[BlackElo "1287"]
[Annotator "NA RC COMBH"]
[PlyCount "47"]
[EventDate "2023.03.11"]
[EventType "swiss"]
[EventCountry "POL"]
[SourceTitle "playchess.com"]
[Source "ChessBase"]
[SourceQuality "1"]
[TimeControl "40/5400+30:1800+30"]

1. e4 e6 2. d4 {[%emt 0:00:06]} d5 {[%emt 0:01:05]} 3. Nd2 {[%emt 0:00:05]} Nc6 {[%emt 0:00:30]} 4. Ngf3 {[%emt 0:00:07]} Nf6 {[%emt 0:00:05]} 5. e5 {[%emt 0:00:05]} Nd7 {[%emt 0:00:07]} 6. Bb5 {[%emt 0:00:10]} a6 {[%emt 0:00:05]} 7. Ba4 {[%emt 0:00:10]} b5 {[%emt 0:01:57]} 8. Bb3 {[%emt 0:00:04]} Na5 {[%emt 0:00:28]} 9. c3 {[%emt 0:00:18]} c5 {[%emt 0:03:23]} 10. dxc5 {[%emt 0:01:18]} Nc6 {[%emt 0:02:23]} 11. Nd4 {[%emt 0:10:38]} Ncxe5 {[%emt 0:07:14]} 12. N2f3 {[%emt 0:07:14]} Bxc5 {[%emt 0:03:18]} 13. O-O {[%emt 0:01:30]} O-O {[%emt 0:10:32]} 14. Re1 {[%emt 0:03:03]} Nc4 {[%emt 0:05:49]} 15. Qe2 {[%emt 0:05:44]} Bd6 {[%emt 0:03:48]} 16. Bxc4 {[%emt 0:04:36]} dxc4 {[%emt 0:03:31]} 17. Nxe6 {[%emt 0:01:24]} Qf6 {[%emt 0:01:02]} 18. Nxf8 {[%emt 0:00:31]} Nxf8 {[%emt 0:00:12]} 19. Bg5 {[%emt 0:01:08]} Qg6 {[%emt 0:00:43]} 20. Be7 {[%emt 0:03:33]} Bxe7 {[%emt 0:06:34]} 21. Qxe7 {[%emt 0:00:14]} Bd7 {[%emt 0:00:05]} 22. Ne5 {[%emt 0:03:22]} Qe6 {[%emt 0:02:25]} 23. Nxd7 {[%emt 0:02:23]} Qxd7 {[%emt 0:00:06]} 24. Rad1 {[%emt 0:00:16]} 1-0